Cogmind - Beta 10.2 @@@ ROGUE MODE // 2020.11.08 @ 18:13:10 // Halloween2020/ForbiddenLore Player: blelm Result: Self-destructed Performance ------------- Evolutions (6) 3000 Regions Visited (21) 4200 Robots Destroyed (198) 990 Value Destroyed (5597) 5597 Prototype IDs (46) 920 Alien Tech Used (0) 0 Bonus (159) 159 TOTAL SCORE: 14866 Bonus ------- High Alert Combat Kills 119 Met Data Miner 300 Met Imprinter 300 Met Warlord at Base 500 MAIN.C Attacked Warlord 500 Friendly Fire -1560 Cogmind --------- Core Integrity 628/1150 Matter 250/300 Energy 21/100 System Corruption 9% Temperature Cool (312) Movement Core (1800) Ox35 Location -4/Factory Parts ------- > --- POWER (1) -------- Antimatter Reactor > --- PROPULSION (5) --- Combat Airjet Combat Airjet Combat Airjet Combat Airjet > --- UTILITY (11) ----- Advanced Cooling System High-capacity Storage Unit High-capacity Storage Unit Experimental Signal Interpreter Experimental Terrain Scan Processor Quantum Capacitor Hardened Light Armor Plating Experimental Hacking Suite Improved System Shield Ghost Barrier > --- WEAPON (2) ------- Heavy Neutron Cannon CR-A16's Pointy Stick > --- INVENTORY (20) --- Light Antimatter Reactor Vortex Chain Reactor Combat Airjet Combat Airjet Combat Airjet Improved Antigrav System Fusion Compressor Experimental Sensor Array Advanced Terrain Scanner Advanced ECM Suite Improved Dynamic Insulation System System Backup Module Mobile Refinery Mk. CCLXVII Mini Smartbomb Launcher Tiamat Missile Launcher Kinetic Spear Peak State ------------ > --- POWER ------------ Light Antimatter Reactor > --- PROPULSION ------- Combat Airjet Combat Airjet Combat Airjet Combat Airjet Combat Airjet > --- UTILITY ---------- Advanced Cooling System High-capacity Storage Unit High-capacity Storage Unit Experimental Sensor Array Experimental Signal Interpreter Advanced Terrain Scanner Experimental Terrain Scan Processor Quantum Capacitor Ghost Barrier System Backup Module > --- WEAPON ----------- Heavy Neutron Cannon Kinetic Spear > --- INVENTORY -------- Micro Fission Core Vortex Chain Reactor Combat Airjet Combat Airjet Combat Airjet Improved Antigrav System Fusion Compressor Advanced Cooling System Advanced ECM Suite Improved Force Field Mobile Refinery Mk. CCLXVII High-powered Shock Rifle Tesla Rifle Coil Gun Coil Gun Tiamat Missile Launcher Tiamat Missile Launcher CR-A16's Pointy Stick [Rating: 113] Favorites ----------- Power Micro Nuclear Core Engine F-cell Engine Power Core Micro Nuclear Core Reactor Light Antimatter Reactor Propulsion Combat Airjet Treads Advanced Treads Leg Aluminum Leg Wheel Compact Wheel Hover Unit Combat Airjet Flight Unit Improved Flight Unit Utility High-capacity Storage Unit Device Experimental Sensor Array Storage High-capacity Storage Unit Processor Advanced Signal Interpreter Hackware Hacking Suite Protection Hardened Light Armor Plating Weapon Nova Cannon Energy Gun EM Pulse Gun Energy Cannon Nova Cannon Ballistic Gun Flak Gun Ballistic Cannon Improved Light Cannon Launcher Grenade Launcher Special Weapon Improved Remote Datajack Slashing Weapon Power Sword Piercing Weapon Spear Build | -11 -10 -9 -9 -9 -8 -8 -7 -7 -7 -7 -6 -6 -6 -6 -6 -5 -5 -5 -5 -4 -4 ------- Run | Scr Mat Mat Min Exi Min Mat Fac Low Low Dat Pro Fac Low Low Zio Pro Fac Upp War Pro Fac Slots Evolved 12 | . . 2 . . . 2 2 . . . . 2 . . . . 2 . . . 2 Power . | . . . . . . . . . . . . . . . . . . . . . . Propulsion 3 | . . . . . . 1 1 . . . . . . . . . 1 . . . . Utility 9 | . . 2 . . . 1 1 . . . . 2 . . . . 1 . . . 2 Weapon . | . . . . . . . . . . . . . . . . . . . . . . Parts Attached 387 | 3 9 13 6 1 6 29 48 22 7 1 5 65 8 7 9 29 43 . 9 3 64 Power 25 | . 2 1 1 . . 1 5 1 . . 1 3 . . . 2 3 . 1 . 4 Engine 14 | . 1 1 1 . . . 4 1 . . 1 2 . . . . 1 . 1 . 1 Core 8 | . 1 . . . . 1 1 . . . . 1 . . . 2 2 . . . . Reactor 3 | . . . . . . . . . . . . . . . . . . . . . 3 Propulsion 46 | 2 1 4 . 1 . 3 20 . 1 . . 10 . . . . 2 . 2 . . Treads 8 | 1 1 2 . 1 . 3 . . . . . . . . . . . . . . . Leg . | . . . . . . . . . . . . . . . . . . . . . . Wheel 2 | 1 . 1 . . . . . . . . . . . . . . . . . . . Hover 20 | . . . . . . . 5 . 1 . . 10 . . . . 2 . 2 . . Flight 16 | . . 1 . . . . 15 . . . . . . . . . . . . . . Utility 188 | . 2 5 2 . . 5 18 17 3 1 1 29 2 5 6 16 26 . 4 3 43 Device 110 | . . 2 . . . . 5 14 2 . 1 18 2 3 3 11 16 . 2 2 29 Storage 12 | . 1 2 . . . 2 4 . . . . 2 . . . . . . . . 1 Processor 7 | . . . . . . . 1 . . . . 1 . . . . 1 . 1 . 3 Hackware 14 | . . . . . . . 4 . . . . 1 . . . . 4 . . . 5 Protection 45 | . 1 1 2 . . 3 4 3 1 1 . 7 . 2 3 5 5 . 1 1 5 Artifact . | . . . . . . . . . . . . . . . . . . . . . . Weapon 128 | 1 4 3 3 . 6 20 5 4 3 . 3 23 6 2 3 11 12 . 2 . 17 Energy Gun 2 | 1 . . . . . . . . . . . . . . . . . . . . 1 Energy Cannon 30 | . . . . . . . 1 . . . . 10 3 1 1 4 4 . . . 6 Ballistic Gun 14 | . . . . . 2 8 3 1 . . . . . . . . . . . . . Ballistic Cannon 14 | . 3 2 1 . 3 3 . 2 . . . . . . . . . . . . . Launcher 24 | . 1 1 2 . 1 6 . . 1 . 2 1 3 . . 3 1 . . . 2 Special Weapon 2 | . . . . . . . . . . . . . . . . . 2 . . . . Impact Weapon . | . . . . . . . . . . . . . . . . . . . . . . Slashing Weapon 6 | . . . . . . . . . 1 . . 1 . 1 1 2 . . . . . Piercing Weapon 36 | . . . . . . 3 1 1 1 . 1 11 . . 1 2 5 . 2 . 8 Special Melee Weapon . | . . . . . . . . . . . . . . . . . . . . . . Unidentified Prototypes 22 | . . 2 . . . 1 5 . . . . 2 . . . 1 3 . 4 . 4 Parts Lost 23 | . . . . . . 3 . 1 . . 1 . . . . 2 3 . 1 . 12 Power 4 | . . . . . . . . 1 . . 1 . . . . . . . . . 2 Propulsion 2 | . . . . . . 1 . . . . . . . . . . . . . . 1 Utility 14 | . . . . . . 1 . . . . . . . . . 1 3 . 1 . 8 Weapon 3 | . . . . . . 1 . . . . . . . . . 1 . . . . 1 Highest Loss Streak 4 | . . . . . . 2 . 1 . . 1 . . . . 2 1 . 1 . 4 Average Slot Usage (%) 99 | . 95 98 100 99 100 99 98 99 100 100 100 99 100 99 100 98 99 100 99 99 95 Engine 3 | . 10 10 11 11 11 . 5 7 7 7 7 5 . . . . 4 5 5 5 1 Core 2 | . 3 . . . . 8 1 . . . . . 6 6 6 6 . . . . . Treads 4 | . 14 11 11 11 22 27 . . . . . . . . . . . . . . . Wheel 1 | . 14 10 11 10 . . . . . . . . . . . . . . . . . Hover 20 | . . . . . . . 11 30 30 30 30 25 26 26 26 26 29 29 29 29 25 Device 9 | . . 8 . . . . 5 6 6 7 7 11 12 12 6 13 12 17 13 11 16 Storage 14 | . 14 22 33 33 33 27 7 7 7 7 7 9 13 13 13 13 11 11 11 11 10 Processor 5 | . . . . . . . 6 7 7 7 7 6 6 6 6 6 5 5 11 11 10 Hackware 13 | . . . . . . . 21 23 23 23 23 21 20 20 20 16 13 5 5 5 10 Protection 5 | . 10 10 11 11 11 18 2 . . . . 2 . . 6 1 6 11 7 10 4 Energy Cannon 2 | . . . . . . . . . . . . 1 5 5 . 3 3 5 5 5 3 Ballistic Gun 1 | . . . . . 12 8 1 . . . . . . . . . . . . . . Ballistic Cannon 3 | . 17 21 19 11 7 7 . 1 1 . . . . . . . . . . . . Slashing Weapon 2 | . . . . . . . . . 1 7 7 6 6 6 11 3 1 . . . . Piercing Weapon 4 | . . . . . . 1 12 13 9 7 5 4 . . . 4 4 5 5 5 6 Naked Turns . | . . . . . . . . . . . . . . . . . . . . . . Heaviest Build 105 | 11 46 83 88 85 86 105 46 71 52 65 50 94 94 87 87 97 103 102 102 101 104 Greatest Support 110 | 20 20 22 22 44 44 66 88 88 88 88 88 88 88 88 88 88 110 110 110 110 110 Greatest Overweight (x) 30 | . 2 5 5 5 1 1 6 . 16 . . 23 1 . . 1 26 . 1 . 30 Average Overweight (x) . | . . 3 4 4 1 1 . . . . . . . . . . . . . . . Largest Inventory Capacity 26 | 6 12 24 24 24 24 26 26 12 12 12 12 20 20 20 20 20 20 20 20 20 20 Average Capacity 18 | 6 9 18 24 24 24 25 9 12 12 12 12 16 20 20 20 20 20 20 20 20 20 Most Carried 26 | 6 11 22 24 24 24 26 25 12 12 12 12 20 20 20 20 20 20 20 20 20 20 Average Carried 18 | 3 6 13 23 20 24 24 8 11 11 12 11 15 19 19 19 19 19 19 19 19 19 Final Capacity 26 | 6 12 24 24 24 24 26 12 12 12 12 12 20 20 20 20 20 20 20 20 20 20 Final Carried 26 | 2 11 22 24 24 24 26 12 12 12 12 11 20 19 20 20 20 20 20 20 20 17 Class Distribution -------------------- 31% | Machinist-Scout 17% | Hauler-Mutant 17% | Hacker-Mutant 11% | Hacker-Scout 7% | Machinist-Mutant 5% | Mutant Dominant Class ---------------- Mutant | -10/Materials Mutant | -9/Materials Hauler-Mutant | -9/Mines Hauler-Mutant | -9/Exiles Hauler-Mutant | -8/Mines Hauler-Mutant | -8/Materials Hacker-Sprinter | -7/Factory Hacker-Mutant | -7/Lower Caves Hacker-Mutant | -7/Lower Caves Hacker-Mutant | -7/Data Miner Hacker-Mutant | -6/Proximity Caves Hacker-Scout | -6/Factory Machinist-Scout | -6/Lower Caves Machinist-Scout | -6/Lower Caves Machinist-Mutant | -6/Zion Machinist-Scout | -5/Proximity Caves Machinist-Scout | -5/Factory Machinist-Ninja | -5/Upper Caves Machinist-Scout | -5/Warlord Machinist-Scout | -4/Proximity Caves Hacker-Scout | -4/Factory Resources | -11 -10 -9 -9 -9 -8 -8 -7 -7 -7 -7 -6 -6 -6 -6 -6 -5 -5 -5 -5 -4 -4 ----------- Run | Scr Mat Mat Min Exi Min Mat Fac Low Low Dat Pro Fac Low Low Zio Pro Fac Upp War Pro Fac Matter Collected 6056 | 230 234 461 138 . 207 924 582 271 144 . 70 615 155 87 83 417 448 10 85 30 865 Remotely . | . . . . . . . . . . . . . . . . . . . . . . Salvage Created 8033 | 68 584 692 156 . 251 1288 386 52 250 . 111 944 174 . 134 299 1194 . . 65 1385 Parts 434 | 1 29 60 12 . 16 91 30 6 10 . 5 39 4 . 1 11 59 . . 1 59 Haulers Intercepted 23 | . 2 5 . . . 4 4 . . . . 1 . . . . 5 . . . 2 Recyclers Shooed 6 | 1 . 1 . . . 1 1 . . . . . . . . . 1 . . . 1 Parts Field Recycled . | . . . . . . . . . . . . . . . . . . . . . . Retrieved Matter . | . . . . . . . . . . . . . . . . . . . . . . Parts Self-Destructed 131 | . . . . . . . . . 5 . 6 . . . . 26 . . 85 9 . Prevented 25 | . . . . . . . . . 2 . 3 . 6 . 1 2 . . 11 . . Kills | -11 -10 -9 -9 -9 -8 -8 -7 -7 -7 -7 -6 -6 -6 -6 -6 -5 -5 -5 -5 -4 -4 ------- Run | Scr Mat Mat Min Exi Min Mat Fac Low Low Dat Pro Fac Low Low Zio Pro Fac Upp War Pro Fac Combat Hostiles Destroyed 114 | . 11 12 9 . 11 27 2 1 5 . 4 5 3 . . 4 3 . . . 17 Melee 23 | . . . . . . . 2 1 2 . . 2 1 . . . 3 . . . 12 Guns 12 | . 2 . . . 2 8 . . . . . . . . . . . . . . . Cannons 28 | . 4 10 4 . 1 7 . . . . . . . . . 1 . . . . 1 AOE 51 | . 5 2 5 . 8 12 . . 3 . 4 3 2 . . 3 . . . . 4 Classes Destroyed 15 | 1 6 3 . . 1 . 1 1 1 . . . . . . . 1 . . . . Worker 7 | . 1 2 . . . 2 . . . . . . . . . . 1 . . . 1 Builder 9 | . . 1 . . . 1 . . . . . 3 . . . . 3 . . . 1 Tunneler 3 | . . 3 . . . . . . . . . . . . . . . . . . . Hauler 23 | . 2 5 . . . 4 4 . . . . 1 . . . . 5 . . . 2 Recycler 14 | 1 2 . . . 1 1 . . . . . 4 . . . 1 1 . . . 3 Operator 8 | . 1 . . . . 4 2 . . . . 1 . . . . . . . . . Watcher 16 | . 1 2 . . . 4 2 . . . . 2 . . . 2 1 . . . 2 Swarmer 37 | . 3 . 6 . 8 8 . . . . 4 3 1 . . 4 . . . . . Grunt 37 | . 8 10 3 . . 9 . . 3 . . . 1 . . . 1 . . . 2 Brawler 2 | . . . . . . . . . . . . . . . . . 2 . . . . Duelist 1 | . . . . . . . . . 1 . . . . . . . . . . . . Sentry 11 | . . 2 . . . 8 . . . . . . 1 . . . . . . . . Hunter 12 | . . . . . 3 2 . . . . . . . . . . 2 . . . 5 Programmer 17 | . . . . . . . 2 . 1 . . 2 . . . . 2 . . . 10 Mutant 1 | . . . . . . . . 1 . . . . . . . . . . . . . Best Kill Streak 7 | 1 7 3 3 . 4 7 2 1 3 . 4 5 4 . . 4 2 . . . 5 Combat Bots Only 6 | . 5 3 3 . 4 6 1 1 3 . 4 3 3 . . 4 2 . . . 2 Max Kills in Single Turn 3 | 1 3 2 2 . 3 3 1 1 1 . 3 2 1 . . 2 1 . . . 1 Gunslinging . | . . . . . . . . . . . . . . . . . . . . . . Exploded 3 | . 2 2 2 . 3 3 . . 1 . 3 2 1 . . 2 . . . . 1 Melee 1 | . . . . . . . 1 1 1 . . 1 1 . . . 1 . . . 1 Uniques/NPCs Destroyed . | . . . . . . . . . . . . . . . . . . . . . . Combat | -11 -10 -9 -9 -9 -8 -8 -7 -7 -7 -7 -6 -6 -6 -6 -6 -5 -5 -5 -5 -4 -4 -------- Run | Scr Mat Mat Min Exi Min Mat Fac Low Low Dat Pro Fac Low Low Zio Pro Fac Upp War Pro Fac Damage Taken 6988 | . 309 152 224 . 349 1184 186 127 354 . 217 189 365 20 . 111 171 . 365 . 2665 Core 1189 | . 93 26 24 . 47 68 27 32 43 . 98 39 102 . . 28 . . 40 . 522 Absorbed by Shields 74 | . . . . . . . . . . . . . . . . . 74 . . . . Core Remaining (%) 81 | 100 62 . . . 75 87 . . . . 71 . . . . 80 . . . 96 . Volleys Fired 485 | 3 28 40 9 . 16 89 1 8 5 . 5 36 26 35 3 47 61 1 6 2 64 Largest 2 | 2 2 2 2 . 2 2 1 1 1 . 1 1 1 1 1 1 1 1 1 1 1 Hottest 113 | 80 80 78 78 . 78 72 28 48 36 . 36 113 113 113 88 113 113 113 113 113 113 Shots Fired 643 | 6 50 78 15 . 27 167 1 8 5 . 5 36 26 35 3 47 61 1 6 2 64 Gun 134 | 6 20 . . . 16 86 1 . . . . . . . . . . . . . 5 Cannon 444 | . 26 76 12 . 7 71 . 8 . . . 33 21 35 3 38 57 1 6 2 48 Launcher 61 | . 4 2 3 . 4 10 . . 5 . 5 3 5 . . 9 . . . . 11 Special 4 | . . . . . . . . . . . . . . . . . 4 . . . . Kinetic 303 | . 26 76 12 . 23 157 1 8 . . . . . . . . . . . . . Thermal 241 | . . . . . . . . . . . . 33 21 35 . 38 57 1 6 2 48 Explosive 40 | . 4 2 3 . 4 8 . . . . . . . . . 8 . . . . 11 Electromagnetic 55 | 6 20 . . . . 2 . . 5 . 5 3 5 . 3 1 . . . . 5 Robot Hit Streak 16 | 2 6 7 6 . 9 16 . . 3 . 4 . 3 . 6 7 9 . . . 3 Robot Miss Streak 6 | 1 3 5 2 . 3 5 . . . . . 4 6 . . . 4 . . . 4 Penetration Max 1 | . . . . . . 1 . . . . . . . . . . . . . . . Secondary Targets 1 | . . . . . . 1 . . . . . . . . . . . . . . . Max Gunslinging Chain 1 | . . . . . . 1 . . . . . . . . . . . . . . . Capacitor 21 | . . . . . . . . . . . . . . . . . . . . . 21 Shots Hit Robots 410 | 4 25 41 7 . 20 110 25 6 12 . 1 29 4 . 5 6 47 . . 3 65 Core Hits 321 | 2 24 26 10 . 20 109 12 3 8 . 4 17 5 . . 7 19 . . 1 54 Critical Hits 11 | . . 1 . . . . 3 . . . . 1 . . . . 3 . . . 3 Critical Kills 7 | . . 1 . . . . 2 . . . . 1 . . . . 2 . . . 1 Critical Parts Destroyed 4 | . . . . . . . 1 . . . . . . . . . 1 . . . 2 Melee Attacks 545 | . . . . . . 10 86 31 19 . 1 133 8 5 2 17 116 2 4 4 107 Impact . | . . . . . . . . . . . . . . . . . . . . . . Slashing 163 | . . . . . . . . . 1 . 1 113 8 5 2 4 29 . . . . Piercing 370 | . . . . . . 10 86 31 18 . . 20 . . . 13 87 2 4 4 95 Entropic 12 | . . . . . . . . . . . . . . . . . . . . . 12 Sneak Attacks 54 | . . . . . . 1 11 . . . . 9 . . . 4 20 . . . 9 Combat Hostiles . | . . . . . . . . . . . . . . . . . . . . . . Follow-up Attacks 26 | . . . . . . . 5 . 2 . . 5 . . . 2 4 . . . 8 Damage Inflicted 20964 | 52 721 1070 495 . 689 3533 1538 169 556 . 163 1979 329 . 367 879 3091 . . 265 5068 Guns 1662 | 52 144 . . . 244 1197 . . . . . . . . . . . . . . 25 Cannons 2960 | . 255 825 148 . 90 1081 . . . . . . . . 118 38 42 . . . 363 Explosions 4914 | . 322 245 310 . 335 1097 . . 246 . 163 193 286 . . 330 . . . . 1387 Melee 11331 | . . . . . . 118 1538 169 310 . . 1786 43 . 249 511 3049 . . 265 3293 Ramming 97 | . . . 37 . 20 40 . . . . . . . . . . . . . . . Kinetic 3840 | . 255 825 148 . 334 2278 . . . . . . . . . . . . . . . Thermal 622 | . . . . . . 88 . . 50 . . . . . . 38 42 . . . 404 Explosive 3513 | . 322 245 310 . 335 719 . . . . . . . . . 236 . . . . 1346 Electromagnetic 1561 | 52 144 . . . . 290 . . 196 . 163 193 286 . 118 94 . . . . 25 Impact . | . . . . . . . . . . . . . . . . . . . . . . Slashing 2979 | . . . . . . . . . . . . 1566 43 . 249 264 857 . . . . Piercing 7567 | . . . . . . 118 1538 169 310 . . 220 . . . 247 2192 . . 265 2508 Entropic 785 | . . . . . . . . . . . . . . . . . . . . . 785 Highest Corruption 11 | . 4 . . . . 2 1 1 . . . 1 . . . . 2 1 1 . 11 Average Corruption 2 | . 2 . . . . 1 1 1 . . . 1 . . . . 1 1 1 . 6 Corruption Purged 12 | . . . . . . . . 1 . . . 1 . . . . 2 . . . 8 Effects 94 | . 4 . . . . 16 4 2 . . . 1 . . . . 2 2 . . 63 Message Errors 23 | . . . . . . 3 1 . . . . 1 . . . . 1 2 . . 15 Matter Fused 12 | . 1 . . . . . . . . . . . . . . . . . . . 11 Heat Flow Errors 14 | . 1 . . . . 3 . . . . . . . . . . . . . . 10 Energy Discharges 13 | . 1 . . . . 6 1 . . . . . . . . . 1 . . . 4 Data Loss (minor) 16 | . . . . . . 3 2 1 . . . . . . . . . . . . 10 Data Loss (major) 1 | . . . . . . . . . . . . . . . . . . . . . 1 Misdirections 2 | . . . . . . . . . . . . . . . . . . . . . 2 Targeting Errors 12 | . . . . . . 1 . 1 . . . . . . . . . . . . 10 Weapon Failures 1 | . 1 . . . . . . . . . . . . . . . . . . . . Overload Shots . | . . . . . . . . . . . . . . . . . . . . . . Overflow Damage 1838 | . 6 4 32 . 3 113 298 . 20 . . 277 11 . 217 175 220 . . 61 401 Projectiles 39 | . . 4 2 . . 18 . . . . . . . . . . . . . . 15 Explosions 169 | . 6 . 30 . 3 27 . . 11 . . . 11 . . 3 . . . . 78 Melee 1630 | . . . . . . 68 298 . 9 . . 277 . . 217 172 220 . . 61 308 Knockbacks 22 | . 1 9 1 . 2 9 . . . . . . . . . . . . . . . Impact . | . . . . . . . . . . . . . . . . . . . . . . Kinetic 20 | . 1 7 1 . 2 9 . . . . . . . . . . . . . . . Secondary 2 | . . 2 . . . . . . . . . . . . . . . . . . . Self-Inflicted Damage 297 | . 28 . 58 . 56 56 . . . . 56 . 43 . . . . . . . . Shots 13 | . 1 . 2 . 2 2 . . . . 3 . 3 . . . . . . . . Rammed 9 | . . . 5 . 2 2 . . . . . . . . . . . . . . . Targets Rammed 9 | . . . 5 . 2 2 . . . . . . . . . . . . . . . Kicked . | . . . . . . . . . . . . . . . . . . . . . . Crushed . | . . . . . . . . . . . . . . . . . . . . . . Highest Temperature 504 | 36 235 30 87 . 60 265 . . 1 . . 408 208 238 36 208 200 50 92 60 504 Average Temperature 79 | 17 49 11 37 . 19 70 . . 1 . . 99 79 91 21 75 75 27 34 29 120 Received Heat Transfer 810 | . 117 75 36 . . 369 . . 21 . 9 24 102 9 . . 18 . 30 . . Effects 4 | . . . . . . . . . . . . 2 . . . . . . . . 2 Energy Bleed 2 | . . . . . . . . . . . . 1 . . . . . . . . 1 Interference 1 | . . . . . . . . . . . . 1 . . . . . . . . . Short Circuit 1 | . . . . . . . . . . . . . . . . . . . . . 1 Siege Activations . | . . . . . . . . . . . . . . . . . . . . . . Robots Corrupted 1 | . . . . . . . . . . . . . . . 1 . . . . . . Combat Hostiles 1 | . . . . . . . . . . . . . . . 1 . . . . . . Parts Fried 5 | 1 1 . . . . . . . 1 . . . 1 . 1 . . . . . . Impact Corruptions . | . . . . . . . . . . . . . . . . . . . . . . Robots Melted . | . . . . . . . . . . . . . . . . . . . . . . Combat Hostiles . | . . . . . . . . . . . . . . . . . . . . . . Parts Melted 1 | . . . 1 . . . . . . . . . . . . . . . . . . Heat Transferred 499 | . . . . . . 100 . . 50 . . . . . . 37 37 . . . 275 Parts Sabotaged . | . . . . . . . . . . . . . . . . . . . . . . Parts Stolen . | . . . . . . . . . . . . . . . . . . . . . . Parts Stripped . | . . . . . . . . . . . . . . . . . . . . . . Power Chain Reactions 3 | . . . . . . 1 . . 1 . . 1 . . . . . . . . . Missiles Intercepted . | . . . . . . . . . . . . . . . . . . . . . . Alert | -11 -10 -9 -9 -9 -8 -8 -7 -7 -7 -7 -6 -6 -6 -6 -6 -5 -5 -5 -5 -4 -4 ------- Run | Scr Mat Mat Min Exi Min Mat Fac Low Low Dat Pro Fac Low Low Zio Pro Fac Upp War Pro Fac Peak Influence 615 | 5 304 269 116 . 320 364 505 . . . . 231 . . . . 104 . . . 615 Initial 128 | . 3 128 46 . . . 94 . . . . 28 . . . . 23 . . . . Average 118 | 1 98 151 77 . 145 182 84 . . . . 76 . . . . 44 . . . 210 Maximum Alert Level 2 | . 1 1 . . 1 1 2 . . . . 1 . . . . . . . . 2 Low Security (%) 84 | 100 84 83 100 . 84 55 99 . . . . 99 . . . . 100 . . . 61 Level 1 11 | . 15 16 . . 15 44 . . . . . . . . . . . . . . 5 Level 2 4 | . . . . . . . . . . . . . . . . . . . . . 33 Level 3 . | . . . . . . . . . . . . . . . . . . . . . . Level 4 . | . . . . . . . . . . . . . . . . . . . . . . Level 5 . | . . . . . . . . . . . . . . . . . . . . . . High Security . | . . . . . . . . . . . . . . . . . . . . . . Max Security . | . . . . . . . . . . . . . . . . . . . . . . Squads Dispatched 31 | . 3 1 . . . 3 3 . . . . 4 . . . . 10 . . . 7 Investigation 9 | . 1 1 . . . 1 . . . . . . . . . . 5 . . . 1 Extermination 15 | . . . . . . . 3 . . . . 4 . . . . 3 . . . 5 Reinforcement 7 | . 2 . . . . 2 . . . . . . . . . . 2 . . . 1 Assault . | . . . . . . . . . . . . . . . . . . . . . . Garrison . | . . . . . . . . . . . . . . . . . . . . . . Intercept . | . . . . . . . . . . . . . . . . . . . . . . Construction Impeded . | . . . . . . . . . . . . . . . . . . . . . . Haulers Reinforced 3 | . . . . . . . . . . . . . . . . . 2 . . . 1 Stealth | -11 -10 -9 -9 -9 -8 -8 -7 -7 -7 -7 -6 -6 -6 -6 -6 -5 -5 -5 -5 -4 -4 --------- Run | Scr Mat Mat Min Exi Min Mat Fac Low Low Dat Pro Fac Low Low Zio Pro Fac Upp War Pro Fac Distress Signals 15 | . 1 5 . . . 3 . . . . . . . . . 1 3 . . . 2 Communications Jammed 38 | . . . . . . . . . . . . . . . . . 12 . . . 26 Distress Signals 38 | . . . . . . . . . . . . . . . . . 12 . . . 26 Times Spotted 242 | . 20 22 9 . 11 43 15 2 8 . 10 20 3 5 . 8 20 . 19 1 26 Peak Tracking Total 16 | . 6 3 4 . 4 5 2 1 5 . 8 4 3 4 . 5 4 . 16 1 4 Tactical Retreats 24 | . 1 . . . . 1 1 1 3 . 3 4 . 1 . 2 4 . 1 1 1 Traps | -11 -10 -9 -9 -9 -8 -8 -7 -7 -7 -7 -6 -6 -6 -6 -6 -5 -5 -5 -5 -4 -4 ------- Run | Scr Mat Mat Min Exi Min Mat Fac Low Low Dat Pro Fac Low Low Zio Pro Fac Upp War Pro Fac Traps Triggered 10 | . 5 1 1 . . 1 . . . . . . . . . . . . . . 2 Indirectly . | . . . . . . . . . . . . . . . . . . . . . . Trap Hack Attempts . | . . . . . . . . . . . . . . . . . . . . . . Triggered . | . . . . . . . . . . . . . . . . . . . . . . Disarmed . | . . . . . . . . . . . . . . . . . . . . . . Reprogrammed . | . . . . . . . . . . . . . . . . . . . . . . Reused . | . . . . . . . . . . . . . . . . . . . . . . Traps Extracted . | . . . . . . . . . . . . . . . . . . . . . . Installed . | . . . . . . . . . . . . . . . . . . . . . . Triggered 14 | . . . . . . . . . . . 1 . 1 3 . . . . 9 . . Machines | -11 -10 -9 -9 -9 -8 -8 -7 -7 -7 -7 -6 -6 -6 -6 -6 -5 -5 -5 -5 -4 -4 ---------- Run | Scr Mat Mat Min Exi Min Mat Fac Low Low Dat Pro Fac Low Low Zio Pro Fac Upp War Pro Fac Machines Disabled 21 | . 3 1 1 . 3 4 . 1 . . . 2 1 . . 1 . . . . 4 Max in Single Turn 2 | . 1 1 1 . 2 1 . 1 . . . 1 1 . . 1 . . . . 2 Garrison Access 9 | . . . . . . 1 . . . . . 3 . . . . 3 . . . 2 Machines Sabotaged . | . . . . . . . . . . . . . . . . . . . . . . Garrisons Compromised . | . . . . . . . . . . . . . . . . . . . . . . Overloaded Fab Kills . | . . . . . . . . . . . . . . . . . . . . . . Fab Network Shutdowns 2 | . . . . . . . 1 . . . . . . . . . . . . . 1 Hacking | -11 -10 -9 -9 -9 -8 -8 -7 -7 -7 -7 -6 -6 -6 -6 -6 -5 -5 -5 -5 -4 -4 --------- Run | Scr Mat Mat Min Exi Min Mat Fac Low Low Dat Pro Fac Low Low Zio Pro Fac Upp War Pro Fac Machines Accessed 102 | . . 3 1 1 . 12 15 . 1 4 . 21 1 1 . 3 22 1 6 . 10 Terminals 55 | . . 2 . . . 7 11 . . . . 12 1 1 . 1 14 . . . 6 Fabricators 11 | . . . . . . . 3 . . . . 3 . . . 1 3 . . . 1 Repair Stations 7 | . . . . . . 2 1 . . . . 2 . . . . 1 . . . 1 Recycling Units 2 | . . . . . . . . . . . . 1 . . . 1 . . . . . Scanalyzers 4 | . . 1 . . . 2 . . . . . . . . . . 1 . . . . Garrison Access 9 | . . . . . . 1 . . . . . 3 . . . . 3 . . . 2 Total Hacks 348 | . . 15 1 1 . 33 58 . 1 26 . 69 3 1 . 4 91 1 13 . 31 Successful 229 | . . 11 1 1 . 20 41 . 1 26 . 46 3 1 . 4 44 1 13 . 16 Failed 116 | . . 4 . . . 13 16 . . . . 22 . . . . 46 . . . 15 Catastrophic 12 | . . 1 . . . 3 1 . . . . 2 . . . . 1 . . . 4 Database Lockouts 3 | . . . . . . . 1 . . . . 1 . . . . 1 . . . . Manual 135 | . . 2 . . . 17 30 . . . . 26 . . . . 44 . 1 . 15 Terminals 193 | . . 7 . . . 19 41 . . . . 34 3 1 . 1 65 . . . 22 Fabricators 58 | . . . . . . . 15 . . . . 23 . . . 2 14 . . . 4 Repair Stations 18 | . . . . . . 5 2 . . . . 5 . . . . 4 . . . 2 Recycling Units 4 | . . . . . . . . . . . . 3 . . . 1 . . . . . Scanalyzers 19 | . . 8 . . . 8 . . . . . . . . . . 3 . . . . Garrison Access 13 | . . . . . . 1 . . . . . 4 . . . . 5 . . . 3 Terminal Hacks 122 | . . 4 1 1 . 4 20 . 1 26 . 17 3 1 . 1 21 1 13 . 8 Record 28 | . . 1 . 1 . . . . . 11 . 1 3 1 . . 2 1 7 . . Part Schematic 23 | . . . . . . . 6 . . 5 . 5 . . . . 5 . . . 2 Robot Schematic 7 | . . . . . . . . . . 7 . . . . . . . . . . . Robot Analysis 2 | . . 1 . . . . . . . . . 1 . . . . . . . . . Prototype ID Bank 8 | . . . . . . . . . . 3 . 1 . . . . . . 4 . . Open Door 5 | . . . 1 . . . . . 1 . . . . . . 1 . . 2 . . Branch Access Points 3 | . . . . . . . 1 . . . . 1 . . . . 1 . . . . Terminal Index 2 | . . . . . . . 1 . . . . . . . . . . . . . 1 Fabricator Index 3 | . . . . . . . 1 . . . . . . . . . 1 . . . 1 Repair Station Index 2 | . . . . . . . 1 . . . . . . . . . 1 . . . . Scanalyzer Index 3 | . . . . . . 1 1 . . . . . . . . . 1 . . . . Garrison Index 2 | . . . . . . . 1 . . . . . . . . . 1 . . . . Alert Level 9 | . . 1 . . . . 2 . . . . 2 . . . . 3 . . . 1 Unreport Threat 3 | . . . . . . 2 . . . . . . . . . . . . . . 1 Locate Traps 8 | . . . . . . . 3 . . . . 2 . . . . 2 . . . 1 Transport Status 1 | . . . . . . . . . . . . . . . . . 1 . . . . Recall Extermination 6 | . . . . . . . 1 . . . . 2 . . . . 2 . . . 1 Hauler Manifests 4 | . . 1 . . . . 1 . . . . 1 . . . . 1 . . . . Registered Prototypes 1 | . . . . . . . 1 . . . . . . . . . . . . . . Zone Layout 2 | . . . . . . 1 . . . . . 1 . . . . . . . . . Fabricator Hacks 33 | . . . . . . . 11 . . . . 14 . . . 2 4 . . . 2 Network Status 1 | . . . . . . . 1 . . . . . . . . . . . . . . Load Schematic 16 | . . . . . . . 4 . . . . 7 . . . 1 3 . . . 1 Build 16 | . . . . . . . 6 . . . . 7 . . . 1 1 . . . 1 Repair Station Hacks 16 | . . . . . . 4 2 . . . . 4 . . . . 4 . . . 2 Scan Component 8 | . . . . . . 2 1 . . . . 2 . . . . 2 . . . 1 Repair 8 | . . . . . . 2 1 . . . . 2 . . . . 2 . . . 1 Recycling Unit Hacks 3 | . . . . . . . . . . . . 2 . . . 1 . . . . . Retrieve Matter 1 | . . . . . . . . . . . . 1 . . . . . . . . . Retrieve Components 2 | . . . . . . . . . . . . 1 . . . 1 . . . . . Scanalyzer 17 | . . 7 . . . 8 . . . . . . . . . . 2 . . . . Insert Component 7 | . . 3 . . . 3 . . . . . . . . . . 1 . . . . Analyze 10 | . . 4 . . . 5 . . . . . . . . . . 1 . . . . Garrison Access Hacks 9 | . . . . . . 1 . . . . . 3 . . . . 3 . . . 2 Seal Access 9 | . . . . . . 1 . . . . . 3 . . . . 3 . . . 2 Unauthorized Hacks 29 | . . . . . . 3 8 . . . . 6 . . . . 10 . . . 2 Terminals 19 | . . . . . . 3 5 . . . . 2 . . . . 7 . . . 2 Track 1 | . . . . . . 1 . . . . . . . . . . . . . . . Assimilate 8 | . . . . . . . 3 . . . . . . . . . 5 . . . . Botnet 9 | . . . . . . 1 2 . . . . 2 . . . . 2 . . . 2 Operators 1 | . . . . . . 1 . . . . . . . . . . . . . . . Fabricators 10 | . . . . . . . 3 . . . . 4 . . . . 3 . . . . Report 2 | . . . . . . . . . . . . 1 . . . . 1 . . . . Siphon 8 | . . . . . . . 3 . . . . 3 . . . . 2 . . . . Repair Stations . | . . . . . . . . . . . . . . . . . . . . . . Recycling Units . | . . . . . . . . . . . . . . . . . . . . . . Scanalyzers . | . . . . . . . . . . . . . . . . . . . . . . Garrison Access . | . . . . . . . . . . . . . . . . . . . . . . Data Cores Recovered 2 | . . . . . . 1 1 . . . . . . . . . . . . . . Used 1 | . . . . . . . 1 . . . . . . . . . . . . . . Hacking Detections 70 | . . 3 . . . 10 13 . . . . 17 1 . . 1 19 . . . 6 Full Trace Events 8 | . . . . . . 2 . . . . . . . . . . 5 . . . 1 Feedback Events 4 | . . . . . . . . . . . . . . . . . 4 . . . . Corruption 1 | . . . . . . . . . . . . . . . . . 1 . . . . Hackware Fried 3 | . . . . . . . . . . . . . . . . . 3 . . . . Feedback Blocked . | . . . . . . . . . . . . . . . . . . . . . . Robot Schematics Acquired 7 | . . . . . . . . . . 7 . . . . . . . . . . . Robots Built . | . . . . . . . . . . . . . . . . . . . . . . Matter . | . . . . . . . . . . . . . . . . . . . . . . Time . | . . . . . . . . . . . . . . . . . . . . . . Total Robot Build Rating . | . . . . . . . . . . . . . . . . . . . . . . Part Schematics Acquired 30 | . . 3 . . . 3 6 . . 5 . 5 . . . . 6 . . . 2 Parts Built 21 | . . . . . . . 9 . . . . 10 . . . . 1 . . . 1 Matter 2077 | . . . . . . . 677 . . . . 870 . . . . 212 . . . 318 Time 1075 | . . . . . . . 357 . . . . 581 . . . . 53 . . . 84 Total Part Build Rating 102 | . . . . . . . 43 . . . . 47 . . . . 6 . . . 6 Parts Repaired 8 | . . . . . . 2 1 . . . . 2 . . . . 2 . . . 1 Time 328 | . . . . . . 102 50 . . . . 42 . . . . 94 . . . 40 Parts Recycled . | . . . . . . . . . . . . . . . . . . . . . . Recycled Matter . | . . . . . . . . . . . . . . . . . . . . . . Retrieved Matter . | . . . . . . . . . . . . . . . . . . . . . . Retrieved Components 20 | . . . . . . . . . . . . 10 . . . 10 . . . . . Parts Scanalyzed 7 | . . 3 . . . 3 . . . . . . . . . . 1 . . . . Part Schematics Acquired 7 | . . 3 . . . 3 . . . . . . . . . . 1 . . . . Parts Damaged . | . . . . . . . . . . . . . . . . . . . . . . Bothacking | -11 -10 -9 -9 -9 -8 -8 -7 -7 -7 -7 -6 -6 -6 -6 -6 -5 -5 -5 -5 -4 -4 ------------ Run | Scr Mat Mat Min Exi Min Mat Fac Low Low Dat Pro Fac Low Low Zio Pro Fac Upp War Pro Fac Used RIF Installer . | . . . . . . . . . . . . . . . . . . . . . . Robots Hacked 2 | . . . . . . . . . . . . . . . . . 2 . . . . Non-combat 1 | . . . . . . . . . . . . . . . . . 1 . . . . Combat 1 | . . . . . . . . . . . . . . . . . 1 . . . . Robot Hacks Applied 2 | . . . . . . . . . . . . . . . . . 2 . . . . parse_system 1 | . . . . . . . . . . . . . . . . . 1 . . . . find_chute 1 | . . . . . . . . . . . . . . . . . 1 . . . . Relay Couplers Released . | . . . . . . . . . . . . . . . . . . . . . . Robots Rewired 6 | . . . . . . . . . . . . . . . . 6 . . . . . Allies Hacked 1 | . . . . . . . 1 . . . . . . . . . . . . . . Hacks Repelled . | . . . . . . . . . . . . . . . . . . . . . . Allies | -11 -10 -9 -9 -9 -8 -8 -7 -7 -7 -7 -6 -6 -6 -6 -6 -5 -5 -5 -5 -4 -4 -------- Run | Scr Mat Mat Min Exi Min Mat Fac Low Low Dat Pro Fac Low Low Zio Pro Fac Upp War Pro Fac Total Allies 17 | . . . 1 . . . 2 . . . 1 . . . . 6 7 . . . . Largest Group 6 | . . . 1 . . . 1 . . . 1 . . . . 6 6 . . . . Highest-Rated Group 202 | . . . 31 . . . 26 . . . 94 . . . . 202 202 . . . . Highest-Rated Ally 94 | . . . 31 . . . 26 . . . 94 . . . . 41 41 . . . . Total Orders 4 | . . . . . . . . . . . . . . . . . 4 . . . . STAY 4 | . . . . . . . . . . . . . . . . . 4 . . . . Ally Attacks 8 | . . . . . . . . . . . 3 . . . . . 5 . . . . Total Damage 97 | . . . . . . . . . . . . . . . . . 97 . . . . Kills . | . . . . . . . . . . . . . . . . . . . . . . Allies Corrupted 1 | . . . . . . . 1 . . . . . . . . . . . . . . Allies Melted . | . . . . . . . . . . . . . . . . . . . . . . Intel | -11 -10 -9 -9 -9 -8 -8 -7 -7 -7 -7 -6 -6 -6 -6 -6 -5 -5 -5 -5 -4 -4 ------- Run | Scr Mat Mat Min Exi Min Mat Fac Low Low Dat Pro Fac Low Low Zio Pro Fac Upp War Pro Fac Robot Analysis Total 2 | . . 1 . . . . . . . . . 1 . . . . . . . . . Derelict Logs Recovered 14 | . . . 1 . . . . 1 1 . . . 2 1 2 3 . 1 . 2 . Drone Launches . | . . . . . . . . . . . . . . . . . . . . . . Drone Recoveries . | . . . . . . . . . . . . . . . . . . . . . . Exploration | -11 -10 -9 -9 -9 -8 -8 -7 -7 -7 -7 -6 -6 -6 -6 -6 -5 -5 -5 -5 -4 -4 ------------- Run | Scr Mat Mat Min Exi Min Mat Fac Low Low Dat Pro Fac Low Low Zio Pro Fac Upp War Pro Fac Turns Passed 31904 | 29 593 1281 1117 600 862 2844 1503 2077 623 56 478 2924 1306 3550 712 4638 2967 238 740 499 2267 Spaces Moved 21427 | 14 350 608 679 386 486 1406 2102 799 706 81 520 2647 1067 367 984 1733 2864 231 975 547 1875 Core 8 | . . . . . . . 2 . 3 . . 1 . . . . 1 . . . 1 Treads 2298 | . 97 286 11 12 486 1406 . . . . . . . . . . . . . . . Legs 5 | 5 . . . . . . . . . . . . . . . . . . . . . Wheels 1626 | 9 253 322 668 374 . . . . . . . . . . . . . . . . . Hover 16054 | . . . . . . . 664 799 703 81 520 2646 1067 367 984 1733 2863 231 975 547 1874 Flight 1436 | . . . . . . . 1436 . . . . . . . . . . . . . . Fastest Speed 26 | 100 100 140 150 150 165 165 26 68 68 68 68 68 68 68 68 68 64 64 64 64 64 Average Speed 82 | 107 131 174 150 150 165 167 39 68 71 68 68 69 68 68 68 77 64 64 64 64 64 Slowest Speed 1550 | 120 200 220 205 165 165 173 350 68 850 68 68 1200 138 68 68 138 1350 64 138 64 1550 Overloaded Moves . | . . . . . . . . . . . . . . . . . . . . . . Propulsion Burnouts . | . . . . . . . . . . . . . . . . . . . . . . Robots Hopped . | . . . . . . . . . . . . . . . . . . . . . . Cave-ins Triggered 1 | . . . . . . . . . . . . . . . . . . . . . 1 Exploration Rate (%) 65 | 2 51 48 99 68 99 90 44 87 77 69 57 49 79 53 87 86 54 33 91 69 38 Regions Visited 21 Branch Regions 14 Pre-discovered Areas 4 | . . . . 1 . . . . . 1 . . . . 2 . . . . . . Known Exits Taken 14 | . . . . . . . 1 1 1 1 1 1 1 1 1 1 1 1 1 1 . Unknown Exits Taken 7 | 1 1 1 1 1 1 1 . . . . . . . . . . . . . . . Scrap Searched 30 | . . . 1 . 1 . . 3 5 . 1 . 6 1 3 2 . 4 . 3 . Spaces Dug 520 | . 7 . . . . 7 37 13 3 . . 114 22 39 . 98 111 3 8 3 55 Terrain Destroyed 805 | . 18 22 24 . 34 89 37 13 10 . . 116 25 39 . 118 115 3 8 3 131 Melee 253 | . . . . . . 7 37 8 3 . . 84 7 4 . 9 61 2 4 1 26 Projectile 234 | . 1 5 1 . . 5 . 5 . . . 31 18 35 . 36 54 1 4 2 36 AOE 318 | . 17 17 23 . 34 77 . . 7 . . 1 . . . 73 . . . . 69 Terrain Rammed . | . . . . . . . . . . . . . . . . . . . . . . Walls Destroyed . | . . . . . . . . . . . . . . . . . . . . . . Machines Disabled . | . . . . . . . . . . . . . . . . . . . . . . Actions | -11 -10 -9 -9 -9 -8 -8 -7 -7 -7 -7 -6 -6 -6 -6 -6 -5 -5 -5 -5 -4 -4 --------- Run | Scr Mat Mat Min Exi Min Mat Fac Low Low Dat Pro Fac Low Low Zio Pro Fac Upp War Pro Fac Total 34349 | 23 433 757 758 412 515 1712 2665 2277 793 81 636 3543 1603 3622 1017 4931 3752 317 1079 686 2737 Wait 11087 | . 27 57 38 . 5 143 374 1416 56 . 106 610 495 3207 14 3039 636 82 70 130 582 Move 21405 | 13 349 607 678 385 485 1405 2101 798 705 80 519 2646 1066 366 983 1732 2863 230 974 546 1874 Hop . | . . . . . . . . . . . . . . . . . . . . . . Pick Up 179 | . 12 23 11 13 . 19 18 3 2 . . 30 . . 1 4 18 1 4 1 19 Fast Attach 80 | . 3 3 1 . 1 4 23 3 . . . 14 . 1 1 1 7 . 6 . 12 Attach 77 | 2 . 4 1 1 . 6 11 2 . . 1 14 1 1 . 2 6 . . 1 24 Detach 44 | . 1 2 . . . . 4 . . . . 10 . 2 . 1 5 . 1 . 18 Swap 230 | 1 6 6 4 . 5 19 14 17 7 1 4 37 7 5 8 26 30 . 3 2 28 Drop 205 | 4 7 15 11 13 1 15 47 5 2 . . 31 . . 2 3 18 1 11 . 19 Fire 485 | 3 28 40 9 . 16 89 1 8 5 . 5 36 26 35 3 47 61 1 6 2 64 Melee 483 | . . . . . . 10 72 25 16 . 1 115 8 5 2 15 108 2 4 4 96 Ram 3 | . . . 3 . . . . . . . . . . . . . . . . . . Kick . | . . . . . . . . . . . . . . . . . . . . . . Crush 6 | . . . 2 . 2 2 . . . . . . . . . . . . . . . Escape Stasis 1 | . . . . . . . . . . . . . . . . . . . . . 1 Rewire 64 | . . . . . . . . . . . . . . . 3 61 . . . . . Trap . | . . . . . . . . . . . . . . . . . . . . . . Miscellaneous . | . . . . . . . . . . . . . . . . . . . . . . Route ------- -11/Scrapyard -10/Materials (discovered 2 exits: *Mat x2) -9/Materials (discovered 2 exits: *Mat / *Min) -9/Mines (discovered 3 exits: *Mat x2 / *Exi) -9/Exiles -8/Mines (discovered 2 exits: *Mat x2) -8/Materials (discovered 5 exits: *Fac x3 / [*Sto x2]) -7/Factory (discovered 3 exits: *Fac / *Low x2) -7/Lower Caves -7/Lower Caves (discovered 2 exits: *Fac / *Dat) -7/Data Miner -6/Proximity Caves -6/Factory (discovered 5 exits: *Fac x3 / *Low x2) -6/Lower Caves -6/Lower Caves -6/Zion -5/Proximity Caves -5/Factory (discovered 7 exits: *Fac x3 / *Upp x2 / Ext x2) -5/Upper Caves (discovered 2 exits: Upp / *War) -5/Warlord -4/Proximity Caves -4/Factory (discovered 3 exits: [*Res x2] / *Upp) History --------- Turn | Location | Event 1 | -11/Scrapyard | Discovered new exit (range 3) 30 | -11/Scrapyard | Entered Materials 233 | -10/Materials | Discovered new exit (range 13) 317 | -10/Materials | Build established: Mutant 474 | -10/Materials | Discovered new exit (range 15) 623 | -10/Materials | Entered another Materials area 623 | -9/Materials | Evolved 2 slots: Utility x2 822 | -9/Materials | Discovered new exit (range 16) 1490 | -9/Materials | Discovered new exit (range 10) 1904 | -9/Materials | Entered Mines 1995 | -9/Mines | Received a Mining Laser from a helpful Derelict 2098 | -9/Mines | Deemed a non-threat by the Exiles lab entrance 2098 | -9/Mines | Discovered new exit (range 5) 2138 | -9/Mines | Build established: Hauler-Mutant 2246 | -9/Mines | Found a damaged Exp. Sensor Array with a note attached 2249 | -9/Mines | Found Prototype Device 2251 | -9/Mines | YI-UF0 nonchalantly dropped a Grenade Launcher on the ground 2306 | -9/Mines | Discovered new exit (range 9) 2399 | -9/Mines | Joined a pair of Derelicts in attacking an 0b10 outpost 2563 | -9/Mines | Found a hidden stash of uninstalled traps 2598 | -9/Mines | Learned Materials security intel 2621 | -9/Mines | Met a Derelict who couldn't figure out how to use a Trap Extractor 2816 | -9/Mines | Discovered new exit (range 5) 3021 | -9/Mines | Entered Exiles 3057 | -9/Exiles | Met 8R-AWN 3083 | -9/Exiles | Met EX-HEX 3155 | -9/Exiles | Met EX-DEC 3182 | -9/Exiles | Learned location of Zion (-6) 3252 | -9/Exiles | Discovered new exit (range 14) 3359 | -9/Exiles | Met EX-BIN 3621 | -9/Exiles | Entered Mines 3728 | -8/Mines | Discovered new exit (range 16) 3965 | -8/Mines | Discovered new exit (range 10) 4483 | -8/Mines | Entered Materials 4483 | -8/Materials | Evolved 2 slots: Propulsion x1, Utility x1 4728 | -8/Materials | Discovered new exit (range 4) 5019 | -8/Materials | Repaired Spear 5073 | -8/Materials | Discovered new exit (range 6) 5156 | -8/Materials | Discovered new exit (range 8) 5503 | -8/Materials | Discovered new exit (range 5) 6252 | -8/Materials | Discovered new exit (range 11) 6725 | -8/Materials | Identified Exp. Sensor Array 7247 | -8/Materials | Repaired Exp. Sensor Array 7327 | -8/Materials | Entered Factory 7327 | -7/Factory | Evolved 2 slots: Propulsion x1, Utility x1 7723 | -7/Factory | Discovered new exit (range 15) 7745 | -7/Factory | Identified exit to Factory 7874 | -7/Factory | Repaired Broken Exp. Sensor Array 7909 | -7/Factory | Discovered new exit (range 3) 7945 | -7/Factory | Build established: Hacker-Sprinter 8054 | -7/Factory | Central database locked down 8154 | -7/Factory | Fabricated System Shield (x1) 8212 | -7/Factory | Fabricated Cmb. Airjet (x2) 8259 | -7/Factory | Fabricated Cmb. Airjet (x2) 8388 | -7/Factory | Identified exit to Lower Caves 8454 | -7/Factory | Fabricated Cmb. Airjet (x2) 8553 | -7/Factory | Fabricated Cmb. Airjet? 8563 | -7/Factory | Build established: Hacker-Mutant 8827 | -7/Factory | Local fabrication network quarantined 8830 | -7/Factory | Entered Lower Caves 8851 | -7/Lower Caves | Attacked by a delusional Derelict stockpiling parts 9202 | -7/Lower Caves | Learned Factory machine intel 10671 | -7/Lower Caves | Spotted B-75 Beast 10755 | -7/Lower Caves | Encountered a Warlord checkpoint 10867 | -7/Lower Caves | Discovered new exit (range 11) 10904 | -7/Lower Caves | Identified exit to Lower Caves 10907 | -7/Lower Caves | Entered another Lower Caves area 10923 | -7/Lower Caves | Discovered exit to Factory (range 5) 11206 | -7/Lower Caves | Learned Factory terminal intel 11206 | -7/Lower Caves | Spotted B-75 Beast 11352 | -7/Lower Caves | Discovered new exit (range 14) 11370 | -7/Lower Caves | Identified exit to Data Miner 11530 | -7/Lower Caves | Entered Data Miner 11530 | -7/Data Miner | Discovered new exit (range 6) 11543 | -7/Data Miner | Met Data Miner 11558 | -7/Data Miner | Learned location of Section 7 (-2) 11558 | -7/Data Miner | Acquired the access code to Warlord's prototype stash 11569 | -7/Data Miner | Received God Mode back door access code from Data Miner 11584 | -7/Data Miner | Identified exit to Proximity Caves 11586 | -7/Data Miner | Entered Proximity Caves 11826 | -6/Proximity Caves | Escorted by Enhanced Grunt 11962 | -6/Proximity Caves | Discovered exit to Factory (range 5) 12064 | -6/Proximity Caves | Entered Factory 12064 | -6/Factory | Evolved 2 slots: Utility x2 12065 | -6/Factory | Loaded intel: 223 machine locations 12066 | -6/Factory | Loaded intel: 20 terminal locations 12251 | -6/Factory | Discovered new exit (range 12) 12339 | -6/Factory | Build established: Hacker-Scout 12946 | -6/Factory | Repaired Cmb. Airjet 13103 | -6/Factory | Fabricated Nova Cannon? 13196 | -6/Factory | Central database locked down 13226 | -6/Factory | Fabricated Imp. Propulsion Shielding? 13237 | -6/Factory | Identified exit to Lower Caves 13285 | -6/Factory | Discovered new exit (range 12) 13645 | -6/Factory | Discovered new exit (range 16) 13683 | -6/Factory | Fabricated Imp. Weapon Cycler? 14154 | -6/Factory | Repaired Exp. Sensor Array 14547 | -6/Factory | Fabricated HERF Cannon? 14697 | -6/Factory | Fabricated Mic. Nuclear Core (x2) 14783 | -6/Factory | Fabricated Adv. Signal Interpreter (x2) 14988 | -6/Factory | Entered Lower Caves 14990 | -6/Lower Caves | Attracted the attention of an 0b10 checkpoint 15106 | -6/Lower Caves | Encountered a Warlord checkpoint 15203 | -6/Lower Caves | Learned Factory stockpile data 15269 | -6/Lower Caves | Build established: Machinist-Scout 15348 | -6/Lower Caves | Identified exit to Lower Caves 16294 | -6/Lower Caves | Entered another Lower Caves area 17126 | -6/Lower Caves | Build established: Machinist-Assassin 17430 | -6/Lower Caves | Build established: Machinist-Scout 19809 | -6/Lower Caves | Spotted B-75 Beast 19836 | -6/Lower Caves | Discovered new exit (range 7) 19839 | -6/Lower Caves | Identified exit to Zion 19844 | -6/Lower Caves | Entered Zion 19910 | -6/Zion | Discovered new exit (range 15) 19915 | -6/Zion | Given the Hacking Drone Bay 20093 | -6/Zion | Build established: Machinist-Mutant 20171 | -6/Zion | Learned Factory emergency access door positions 20266 | -6/Zion | Visited the Megawrench Repair Shop 20266 | -6/Zion | Megawrench repaired 10 parts 20326 | -6/Zion | Learned 4 Factory zone layouts 20406 | -6/Zion | Learned location of Warlord (-5) 20467 | -6/Zion | Found CR-A16's Pointy Stick 20514 | -6/Zion | Found Prototype Device 20554 | -6/Zion | Identified exit to Proximity Caves 20556 | -6/Zion | Entered Proximity Caves 20864 | -5/Proximity Caves | Build established: Machinist-Scout 21855 | -5/Proximity Caves | Learned location of 1 exit from Upper Caves 21861 | -5/Proximity Caves | Identified exit to Factory 21971 | -5/Proximity Caves | Learned Factory terminal intel 23625 | -5/Proximity Caves | Identified Mobile Refinery Mk. CCLXVII 24293 | -5/Proximity Caves | Snuck into a huge 0b10 base via the rear entrance 24634 | -5/Proximity Caves | Received a Behemoth hack from an annoying Tinkerer 24643 | -5/Proximity Caves | Build established: Machinist-Mutant 24797 | -5/Proximity Caves | Derelicts attacked a huge 0b10 base 25104 | -5/Proximity Caves | Build established: Machinist-Scout 25194 | -5/Proximity Caves | Entered Factory 25194 | -5/Factory | Accompanied by 6 allies 25194 | -5/Factory | Evolved 2 slots: Propulsion x1, Utility x1 25195 | -5/Factory | Identified exit to Upper Caves 25196 | -5/Factory | Identified exit to Factory 25199 | -5/Factory | Loaded intel: 21 terminal locations 25507 | -5/Factory | Identified exit to Extension 26112 | -5/Factory | Found Prototype Processor 26112 | -5/Factory | Identified Exp. Signal Interpreter 26372 | -5/Factory | Discovered exit to Factory (range 3) 26435 | -5/Factory | Central database locked down 26908 | -5/Factory | Discovered exit to Factory (range 16) 26931 | -5/Factory | Build established: Hacker-Mutant 27084 | -5/Factory | Repaired Mic. Fission Core? 27180 | -5/Factory | Repaired Adv. Terrain Scanner 27346 | -5/Factory | Adv. System Shield fried by hacking feedback 27372 | -5/Factory | Incoming investigation squad redirected 27380 | -5/Factory | Adv. Hacking Suite fried by hacking feedback 27637 | -5/Factory | Hacking Suite fried by hacking feedback 27653 | -5/Factory | Incoming investigation squad redirected 27977 | -5/Factory | Build established: Machinist-Ninja 27980 | -5/Factory | Fabricated Adv. Hacking Suite? 28161 | -5/Factory | Entered Upper Caves 28162 | -5/Upper Caves | Identified exit to Upper Caves 28381 | -5/Upper Caves | A Derelict revealed a hidden shortcut to "reach the base" 28384 | -5/Upper Caves | Identified exit to Warlord 28399 | -5/Upper Caves | Entered Warlord 28432 | -5/Warlord | System corruption cleaned by Quarantine Array 28654 | -5/Warlord | Met Warlord 28660 | -5/Warlord | Opened Warlord's prototype stash 28664 | -5/Warlord | Found Prototype Device 28664 | -5/Warlord | Identified Thermal Barrier 28677 | -5/Warlord | Found Prototype Device 28677 | -5/Warlord | Identified Exp. Phase Shifter 28679 | -5/Warlord | Warlord's base attacked by MAIN.C 28685 | -5/Warlord | Found Prototype Hackware 28703 | -5/Warlord | Build established: Machinist-Scout 28817 | -5/Warlord | Found Prototype Piercing Weapon 28817 | -5/Warlord | Identified Vortex Lance 28895 | -5/Warlord | Found Prototype Reactor 28966 | -5/Warlord | Opened side exit 29029 | -5/Warlord | Warlord forces counterattacked 29076 | -5/Warlord | Discovered new exit (range 9) 29079 | -5/Warlord | Spotted Striker 29079 | -5/Warlord | Spotted Executioner 29079 | -5/Warlord | Spotted Executioner 29134 | -5/Warlord | Identified exit to Proximity Caves 29139 | -5/Warlord | Entered Proximity Caves 29390 | -4/Proximity Caves | Learned Research emergency access door positions 29391 | -4/Proximity Caves | Learned Research emergency access door positions 29595 | -4/Proximity Caves | Discovered exit to Factory (range 9) 29638 | -4/Proximity Caves | Entered Factory 29638 | -4/Factory | Evolved 2 slots: Utility x2 29639 | -4/Factory | Identified Ghost Barrier 30249 | -4/Factory | Lost 3 parts (1p2u) 30285 | -4/Factory | Discovered new exit (range 14) 30363 | -4/Factory | Identified exit to Upper Caves 30551 | -4/Factory | Spotted B-86 Titan 30629 | -4/Factory | Crushed by falling debris 30630 | -4/Factory | System corruption reached 10% 30655 | -4/Factory | Found Quantum Capacitor 30660 | -4/Factory | Lost 4 parts (4u) 30660 | -4/Factory | Found Prototype Processor 30660 | -4/Factory | Identified Exp. Terrain Scan Processor 30731 | -4/Factory | Discovered new exit (range 17) 30794 | -4/Factory | Discovered new exit (range 19) 30916 | -4/Factory | Fabricated Mni. Smartbomb Launcher? 31024 | -4/Factory | Local fabrication network quarantined 31328 | -4/Factory | Build established: Hacker-Scout 31591 | -4/Factory | Found Prototype Hackware 31592 | -4/Factory | Identified Exp. Hacking Suite 31711 | -4/Factory | Repaired Exp. Sensor Array? 31905 | -4/Factory | Self-destructed Last Messages --------------- 31856_ Slug penetrates H-77 Assassin. 31856_ Slug penetrates Wall. 31871_ System corrupted: Component data lost. 31883_ Slug penetrates Wall. 31886_ System corrupted: Tesla Rifle targeting data glitched. 31886_ Penetrated by Slug. 31886_ Tesla Rifle destroyed. 31886_ Cmb. Airjet destroyed. 31889_ System corrupted: Hvy. Neutron Cannon targeting data glitched. 31890_ Slug penetrates Wall. 31891_ Fabricator disabled. 31893_ Penetrated by Slug. 31896_ H-77 Assassin destroyed. 31898_ Slug penetrates Fabricator. 31899_ Destroyed Imp. Phase Shifter. 31902_ Overheating: Energy bleed (-3). 31903_ Antimatter Reactor permanently disabled. 31903_ Overheating: Short circuit. 31905_ Penetrated by Slug. 31905_ Slug penetrates Wall. Map ----- +----------------------------------------------------+ | ## # ??#?#??#??#????????????????????????? | | ## # ? ??###??## ????????????????????????? | | ## #######?#?#?# #??? ???????????????????????? | | +### ?? ? ?#?????????????????????????? | | ### ? ? ?? ??# ??"?????????????????????? | | ### ?? """"? +? ???????????????????????? | | ### """ """ ""T"" # ? ??????????????????????? | | ### """ """ #? ???????????????????????? | | ### """ """ # ????????????????????????? | | ? ##?#??????????????????????? | | #?#?#?????????????????????? | | ? ? ####??????????????????????? | | ##+##+#### #?#?###???????????????????? | | # [ ## ##??##????????????????????? | | # ## #########?????????????????? | | / ] ## ??????????????????? | | ######## + ???????????????????? | | ######## !## ?? ???????????????????? | | +######### ## ######+###+#?????????????? | | ?#### ## # #????????????? | | #### + ; """"""""" #????????????? | | ?#### ########= #????????????? | | ####= ##?#####%"" """ #????????????? | | ##?# ! ######?#[ "F""" #????????????? | | ##############????# """"" #????????????? | | ##?#??##?###?#?#??#@ h #????????????? | | ####??#######?######???####;####;###?????????????? | | | | | | | | | | | | | | | | | | | | | | | | | | | | | | | | | | | | | | | | | | | | | | | +----------------------------------------------------+ Best States ------------- Heat Dissipation 74 Energy Generation 21 Energy Capacity 500 Matter Stores 300 Matter Capacity 300 Sight Range 16 Robot Scan Range 30 Terrain Scan Range 20 Terrain Scan Density 1010 ECM Strength 3 Jamming Range 12 EM Shielding 3 Armor Coverage 450 Resistance: KI 30 Resistance: EM 15 Propulsion Shielding 66 Weapon Shielding 33 Phase Shifting 20 Evasion (%) 72 Target Analysis 6 Recoil Reduction 3 Offensive Hacking 35 Defensive Hacking 32 Item Schematics ----------------- Hacking Suite | -9/Materials | Scanalyzed Sml. Storage Unit | -9/Materials | Scanalyzed Med. Storage Unit | -9/Materials | Scanalyzed Exp. Sensor Array | -8/Materials | Scanalyzed Mic. Nuclear Core | -8/Materials | Scanalyzed Adv. Terrain Scanner | -8/Materials | Scanalyzed System Shield | -7/Factory | Hacked Cmb. Airjet | -7/Factory | Hacked Adv. Signal Interpreter | -7/Factory | Hacked Imp. Weapon Cycler | -7/Factory | Hacked Imp. Shield Generator | -7/Factory | Hacked EM Shield | -7/Factory | Hacked Combat Drone Bay | -7/Data Miner | Free Lgt. Regenerative Plating | -7/Data Miner | Free Exp. Flexi-carbon Leg | -7/Data Miner | Free Triangulator | -7/Data Miner | Free Exp. Transmission Jammer | -7/Data Miner | Free Imp. Propulsion Shielding | -6/Factory | Hacked HERF Cannon | -6/Factory | Hacked Adv. Melee Analysis Suite | -6/Factory | Hacked Lgt. Antimatter Reactor | -6/Factory | Hacked Imp. Gyrokinetic Inverter | -6/Factory | Hacked Adv. Hacking Suite | -5/Factory | Hacked Exp. Propulsion Shielding | -5/Factory | Hacked Cmb. Antigrav System | -5/Factory | Hacked Adv. Cooling System | -5/Factory | Hacked Imp. Arc Projector | -5/Factory | Hacked Mic. Fission Core | -5/Factory | Scanalyzed Mni. Smartbomb Launcher | -4/Factory | Hacked Nanoactuators | -4/Factory | Hacked Robot Schematics ------------------ S-27 Virus | -7/Data Miner | Free G-50 Soldier | -7/Data Miner | Free G-67 Veteran | -7/Data Miner | Free H-66 Slayer | -7/Data Miner | Free P-70 Sage | -7/Data Miner | Free I-36 Angel | -7/Data Miner | Free I-47 Archangel | -7/Data Miner | Free Fabricated ------------ System Shield | x1 | -7/Factory Cmb. Airjet | x2 | -7/Factory Cmb. Airjet | x2 | -7/Factory Cmb. Airjet | x2 | -7/Factory Cmb. Airjet | x2 | -7/Factory Nova Cannon | x1 | -6/Factory | Preloaded Imp. Propulsion Shielding | x2 | -6/Factory Imp. Weapon Cycler | x2 | -6/Factory | Preloaded HERF Cannon | x1 | -6/Factory Mic. Nuclear Core | x2 | -6/Factory Adv. Signal Interpreter | x2 | -6/Factory Adv. Hacking Suite | x1 | -5/Factory Mni. Smartbomb Launcher | x1 | -4/Factory Alien Tech Used ----------------- None Achievements -------------- A Powerful Ally? Collateral Damage Ooh, Shiny! Reappropriation Universal Adapter Challenges ------------ None Game ------ Seed MeleeWaveUnit Manual? 0 Play Time 07:42:45 Cumulative 89.0 hours Start 2020.11.07 @ 20:16:20 End 2020.11.08 @ 18:13:10 Sessions 1 Manual Loads 0 Difficulty Rogue Special Mode Halloween2020/ForbiddenLore Game No. 55 Rogue 55 Adventurer 0 Explorer 0 Win Type - Total 1 Types 1/0/0/0/0/0/0/0/0 Lore% 37 Gallery% 45 Achievement% 38 Wizard Run 0 Options --------- ASCII 1 Keyboard 1 Movement Vi Keybinds 0 Fullscreen 1 Font 16/Terminus Map View 75x55 Tactical HUD 1 Map Filters NONE Filters NONE Steam 1 RUN: 179d7bcf-7aaf-4803-a27a-2003c8a0e717